fUST/lending_fUST_20250717
["ID","MTS","AMOUNT","RATE_DAILY","PERIOD"]
[372637730,1752723048039,-151.0,0.00019329,2]
[372637731,1752723048049,-151.0,0.00019329,2]
[372637732,1752723048059,-100000.0,0.00019329,2]
[372637733,1752723048068,-502.33047726,0.00019337,2]
[372637734,1752723048078,-502.41079222,0.00019337,2]
[372637735,1752723048087,-172.839698,0.00019347,2]
[372637736,1752723048096,-354.67551,0.00019347,2]
[372637737,1752723048106,-354.67551,0.00019347,2]
[372637738,1752723048115,-168.0,0.00019349,2]
[372637739,1752723048131,-1000.0,0.00019355,2]
[372637740,1752723048142,-1000.0,0.00019355,2]
[372637741,1752723048152,-151.0,0.00019381,2]
[372637742,1752723048163,-168.0,0.00019383,2]
[372637743,1752723048172,-168.0,0.00019417,2]
[372637744,1752723048182,-260.0,0.00019442,2]
[372637745,1752723048191,-151.28927516,0.00019452,2]
[372637746,1752723048204,-1000.0,0.000195,2]
[372637747,1752723048213,-1000.0,0.000195,2]
[372637748,1752723048223,-1000.0,0.000195,2]
[372637749,1752723048233,-1000.0,0.000195,2]
[372637750,1752723048242,-1000.0,0.000195,2]
[372637751,1752723048254,-1000.0,0.000195,2]
[372637752,1752723048263,-1000.0,0.000195,2]
[372637753,1752723048272,-1000.0,0.000195,2]
[372637754,1752723048282,-1000.0,0.000195,2]
[372637755,1752723048292,-1000.0,0.000195,2]
[372637756,1752723048301,-1000.0,0.000195,2]
[372637757,1752723048311,-1000.0,0.000195,2]
[372637758,1752723048320,-1000.0,0.000195,2]
[372637759,1752723048329,-1000.0,0.000195,2]
[372637760,1752723048339,-1000.0,0.000195,2]
[372637761,1752723048348,-1000.0,0.000195,2]
[372637762,1752723048358,-151.0,0.000195,2]
[372637763,1752723048367,-1000.0,0.000195,2]
[372637764,1752723048376,-1000.0,0.000195,2]
[372637765,1752723048386,-1000.0,0.000195,2]
[372637766,1752723048396,-1000.0,0.000195,2]
[372637767,1752723048405,-1000.0,0.000195,2]
[372637768,1752723048415,-1000.0,0.000195,2]
[372637769,1752723048424,-1000.0,0.000195,2]
[372637770,1752723048434,-1000.0,0.000195,2]
[372637771,1752723048443,-1000.0,0.000195,2]
[372637772,1752723048453,-1000.0,0.000195,2]
[372637773,1752723048462,-1301.08,0.000195,2]
[372637774,1752723048472,-1000.0,0.000195,2]
[372637775,1752723048481,-1084.0,0.00019519,2]
[372637776,1752723048490,-151.0,0.00019519,2]
[372637777,1752723048501,-198.68187387,0.00019519,2]
[372637778,1752723048511,-198.88303825,0.00019519,2]
[372637779,1752723048521,-276.01602829,0.00019519,2]
[372637780,1752723048531,-954.0,0.00019519,2]
[372637781,1752723048540,-500.0,0.00019519,2]
[372637782,1752723048550,-151.0,0.00019519,2]
[372637783,1752723048559,-500.0,0.00019519,2]
[372637784,1752723048568,-1313.4,0.00019525,3]
[372637785,1752723048577,-656.7,0.00019525,3]
[372637786,1752723048587,-328.34,0.00019525,3]
[372637787,1752723048596,-460.0,0.00019532,2]
[372637788,1752723048605,-473.71,0.00019532,2]
[372637789,1752723048615,-2785.57,0.00019532,2]
[372637790,1752723048624,-286.43,0.00019532,2]
[372637791,1752723048634,-460.0,0.00019533,2]
[372637792,1752723048643,-460.0,0.00019533,2]
[372637793,1752723048653,-547.02,0.00019533,2]
[372637794,1752723048663,-460.0,0.00019533,2]
[372637795,1752723048673,-460.0,0.00019533,2]
[372637796,1752723048682,-2045.43,0.00019533,2]
[372637797,1752723048691,-627.8,0.00019533,2]
[372637798,1752723048701,-6648.01,0.00019533,2]
[372637799,1752723048711,-951.3,0.00019533,2]
[372637800,1752723048721,-460.0,0.00019533,2]
[372637801,1752723048730,-3652.79,0.00019533,2]
[372637802,1752723048740,-460.0,0.00019533,2]
[372637803,1752723048750,-845.11,0.00019533,2]
[372637804,1752723048760,-1035.96,0.00019533,2]
[372637805,1752723048769,-460.0,0.00019533,2]
[372637806,1752723048779,-460.0,0.00019533,2]
[372637807,1752723048789,-460.0,0.00019533,2]
[372637808,1752723048799,-620.11,0.00019533,2]
[372637809,1752723048809,-684.65,0.00019533,2]
[372637810,1752723048818,-3024.44,0.00019533,2]
[372637811,1752723048828,-3191.81,0.00019533,2]
[372637812,1752723048837,-759.64,0.00019533,2]
[372637813,1752723048846,-1269.72,0.00019533,2]
[372637814,1752723048856,-460.0,0.00019533,2]
[372637815,1752723048867,-460.0,0.00019533,2]
[372637816,1752723048877,-784.55,0.00019533,2]
[372637817,1752723048887,-460.0,0.00019533,2]
[372637818,1752723048897,-2191.17,0.00019533,2]
[372637819,1752723048907,-852.47,0.00019533,2]
[372637820,1752723048917,-650.53,0.00019533,2]
[372637821,1752723048926,-473.26,0.00019534,2]
[372637822,1752723048936,-460.0,0.00019534,2]
[372637823,1752723048946,-460.0,0.00019534,2]
[372637824,1752723048955,-460.0,0.00019534,2]
[372637825,1752723048965,-709.98,0.00019534,2]
[372637826,1752723048977,-716.64,0.00019534,2]
[372637827,1752723048987,-523.07,0.00019534,2]
[372637828,1752723048998,-460.0,0.00019534,2]
[372637829,1752723049007,-599.92,0.00019534,2]
[372637830,1752723049018,-821.65,0.00019534,2]
[372637831,1752723049029,-1054.76,0.00019534,2]
[372637832,1752723049039,-877.34,0.00019534,2]
[372637833,1752723049049,-539.33,0.00019534,2]
[372637834,1752723049059,-460.0,0.00019534,2]
[372637835,1752723049070,-558.80890755,0.00019534,2]
[372637836,1752723049080,-460.0,0.00019534,2]
[372637837,1752723049090,-658.6,0.00019534,2]
[372637838,1752723049100,-4365.85,0.00019534,2]
[372637839,1752723049110,-460.0,0.00019534,2]
[372637840,1752723049206,-601.21,0.00019534,2]
[372637841,1752723049217,-1353.14,0.00019534,2]
[372637842,1752723049227,-595.98,0.00019534,2]
[372637843,1752723049238,-460.0,0.00019534,2]
[372637844,1752723049249,-2332.6,0.00019534,2]
[372637845,1752723049259,-609.05,0.00019534,2]
[372637846,1752723049269,-561.64665661,0.00019534,2]
[372637847,1752723049279,-645.82,0.00019534,2]
[372637848,1752723049290,-5166.37,0.00019534,2]
[372637849,1752723049301,-943.64,0.00019534,2]
[372637850,1752723049311,-460.0,0.00019534,2]
[372637851,1752723049322,-1177.83,0.00019534,2]
[372637852,1752723049332,-460.0,0.00019534,2]
[372637853,1752723049342,-2795.97,0.00019534,2]
[372637854,1752723049351,-615.04,0.00019535,2]
[372637855,1752723049362,-1739.23,0.00019535,2]
[372637856,1752723049372,-5170.55,0.00019535,2]
[372637857,1752723049382,-151.828364,0.00019535,2]
[372637858,1752723049391,-151.828364,0.00019535,2]
[372637859,1752723049401,-151.0,0.00019535,2]
[372637860,1752723049411,-1736.7,0.00019535,2]
[372637861,1752723049421,-151.0,0.00019535,2]
[372637862,1752723049430,-151.0,0.00019535,2]
[372637863,1752723049439,-460.0,0.00019536,2]
[372637864,1752723049449,-460.0,0.00019536,2]
[372637865,1752723049459,-460.0,0.00019536,2]
[372637866,1752723049468,-935.6,0.00019536,2]
[372637867,1752723049478,-460.0,0.00019536,2]
[372637868,1752723049487,-199.146744,0.00019536,2]
[372637869,1752723049498,-199.146744,0.00019536,2]
[372637870,1752723049507,-460.0,0.00019536,2]
[372637871,1752723049517,-205.90158,0.00019546,2]
[372637872,1752723049526,-460.0,0.00019546,2]
[372637873,1752723049536,-151.0,0.00019546,2]
[372637874,1752723049546,-151.0,0.00019546,2]
[372637875,1752723049556,-2007.7237429,0.00019555,2]
[372637876,1752723049565,-504.68398753,0.00019568,2]
[372637877,1752723049575,-978.763909,0.0001958,2]
[372637878,1752723049584,-215.0738,0.00019581,2]
[372637879,1752723049594,-429.0212778,0.00019602,2]
[372637880,1752723049604,-1244.0,0.00019634,2]
[372637881,1752723049614,-151.0,0.000197,2]
[372637882,1752723049624,-1500.0,0.0001975,2]
[372637883,1752723049633,-800.0,0.00019765,2]
[372637884,1752723049643,-1084.0,0.00019793,2]
[372637885,1752723049653,-268.78440359,0.00019793,2]
[372637886,1752723049662,-954.0,0.00019793,2]
[372637887,1752723049672,-500.0,0.00019793,2]
[372637888,1752723049682,-151.0,0.00019793,2]
[372637889,1752723049703,-500.0,0.00019793,2]
[372637890,1752723049714,-500.0,0.00019793,2]
[372637891,1752723049724,-151.0,0.00019793,2]
[372637892,1752723049735,-151.0,0.00019793,2]
[372637893,1752723049745,-151.0,0.00019793,2]
[372637894,1752723049756,-151.0,0.00019793,2]
[372637895,1752723049766,-151.0,0.00019793,2]
[372637896,1752723049777,-151.0,0.00019793,2]
[372637897,1752723049787,-151.0,0.00019793,2]
[372637898,1752723049797,-151.0,0.000198,2]
[372637899,1752723049807,-151.0,0.000198,2]
[372637900,1752723049818,-354.67551,0.000198,2]
[372637901,1752723049828,-354.67551,0.000198,2]
[372637902,1752723049838,-1500.0,0.00019805,2]
[372637903,1752723049848,-460.0,0.00019806,2]
[372637904,1752723049859,-473.71,0.00019806,2]
[372637905,1752723049869,-2785.57,0.00019806,2]
[372637906,1752723049879,-460.0,0.00019807,2]
[372637907,1752723049891,-460.0,0.00019807,2]
[372637908,1752723049902,-460.0,0.00019807,2]
[372637909,1752723049913,-460.0,0.00019807,2]
[372637910,1752723049923,-2045.43,0.00019807,2]
[372637911,1752723049933,-627.8,0.00019807,2]
[372637912,1752723049944,-6648.01,0.00019807,2]
[372637913,1752723049954,-951.3,0.00019807,2]
[372637914,1752723049964,-460.0,0.00019807,2]
[372637915,1752723049974,-3652.79,0.00019807,2]
[372637916,1752723049984,-445.79118827,0.00019807,2]
[372637917,1752723049995,-845.11,0.00019807,2]
[372637918,1752723050007,-1035.96,0.00019807,2]
[372637919,1752723050017,-460.0,0.00019807,2]
[372637920,1752723050027,-460.0,0.00019807,2]
[372637921,1752723050037,-620.11,0.00019807,2]
[372637922,1752723050047,-684.65,0.00019807,2]
[372637923,1752723050057,-3024.44,0.00019807,2]
[372637924,1752723050066,-3191.81,0.00019807,2]
[372637925,1752723050076,-759.64,0.00019807,2]
[372637926,1752723050086,-1269.72,0.00019807,2]
[372637927,1752723050096,-460.0,0.00019807,2]
[372637928,1752723050106,-460.0,0.00019807,2]
[372637929,1752723050116,-784.55,0.00019807,2]
[372637930,1752723050129,-460.0,0.00019807,2]
[372637931,1752723050139,-2191.17,0.00019807,2]
[372637932,1752723050148,-852.47,0.00019807,2]
[372637933,1752723050157,-650.53,0.00019807,2]
[372637934,1752723050167,-473.26,0.00019808,2]
[372637935,1752723050177,-460.0,0.00019808,2]
[372637936,1752723050186,-460.0,0.00019808,2]
[372637937,1752723050195,-460.0,0.00019808,2]
[372637938,1752723050207,-709.98,0.00019808,2]
[372637939,1752723050217,-716.64,0.00019808,2]
[372637940,1752723050227,-523.07,0.00019808,2]
[372637941,1752723050237,-460.0,0.00019808,2]
[372637942,1752723050246,-599.92,0.00019808,2]
[372637943,1752723050258,-821.65,0.00019808,2]
[372637944,1752723050268,-1054.76,0.00019808,2]
[372637945,1752723050278,-877.34,0.00019808,2]
[372637946,1752723050287,-539.33,0.00019808,2]
[372637947,1752723050298,-460.0,0.00019808,2]
[372637948,1752723050308,-460.0,0.00019808,2]
[372637949,1752723050318,-658.6,0.00019808,2]
[372637950,1752723050331,-4365.85,0.00019808,2]
[372637951,1752723050342,-460.0,0.00019808,2]
[372637952,1752723050351,-601.21,0.00019808,2]
[372637953,1752723050361,-1353.14,0.00019808,2]
[372637954,1752723050371,-595.98,0.00019808,2]
[372637955,1752723050381,-460.0,0.00019808,2]
[372637956,1752723050391,-2332.6,0.00019808,2]
[372637957,1752723050401,-609.05,0.00019808,2]
[372637958,1752723050411,-645.82,0.00019808,2]
[372637959,1752723050421,-5166.37,0.00019808,2]
[372637960,1752723050430,-943.64,0.00019808,2]
[372637961,1752723050440,-460.0,0.00019808,2]
[372637962,1752723050450,-1177.83,0.00019808,2]
[372637963,1752723050460,-460.0,0.00019808,2]
[372637964,1752723050470,-2795.97,0.00019808,2]
[372637965,1752723050480,-151.0,0.00019809,2]
[372637966,1752723050490,-151.0,0.00019809,2]
[372637967,1752723050501,-615.04,0.00019809,2]
[372637968,1752723050511,-1739.23,0.00019809,2]
[372637969,1752723050521,-5170.55,0.00019809,2]
[372637970,1752723050531,-1736.7,0.00019809,2]
[372637971,1752723050541,-460.0,0.0001981,2]
[372637972,1752723050550,-460.0,0.0001981,2]
[372637973,1752723050560,-460.0,0.0001981,2]
[372637974,1752723050571,-935.6,0.0001981,2]
[372637975,1752723050581,-460.0,0.0001981,2]
[372637976,1752723050592,-460.0,0.0001981,2]
[372637977,1752723050602,-420.0,0.00019812,2]
[372637978,1752723050612,-561.5653351,0.0001982,2]
[372637979,1752723050623,-800.0,0.00019828,2]
[372637980,1752723050633,-1315.83272113,0.00019865,2]
[372637981,1752723050643,-1500.0,0.00019865,2]
[372637982,1752723050654,-151.828364,0.00019865,2]
[372637983,1752723050664,-151.828364,0.00019865,2]
[372637984,1752723050674,-285.166704,0.00019865,2]
[372637985,1752723050684,-151.0,0.00019865,2]
[372637986,1752723050694,-151.0,0.00019865,2]
[372637987,1752723050704,-151.0,0.00019888,2]
[372637988,1752723050714,-199.146744,0.00019888,2]
[372637989,1752723050723,-199.146744,0.00019888,2]
[372637990,1752723050733,-152.111516,0.00019888,2]
[372637991,1752723050743,-2007.7237429,0.00019888,2]
[372637992,1752723050754,-164.67,0.00019888,2]
[372637993,1752723050766,-168.0,0.00019888,2]
[372637994,1752723050776,-2574.50487403,0.0001989,2]
[372637995,1752723050786,-156.179614,0.000199,2]
[372637996,1752723050795,-156.179614,0.000199,2]
[372637997,1752723050805,-1000.0,0.00019903,2]
[372637998,1752723050815,-501.13455083,0.00019903,2]
[372637999,1752723050825,-168.0,0.00019911,2]
[372638000,1752723050835,-168.0,0.00019914,2]
[372638001,1752723050845,-168.0,0.00019939,2]
[372638002,1752723050963,-500.0,0.00019973,2]
[372638003,1752723050973,-500.0,0.00019973,2]
[372638004,1752723050983,-500.0,0.00019973,2]
[372638005,1752723050993,-500.0,0.00019973,2]
[372638006,1752723051004,-500.0,0.00019973,2]
[372638007,1752723051014,-500.0,0.00019973,2]
[372638008,1752723051023,-182.91924372,0.00019973,2]
[372638009,1752723051034,-571.16357736,0.00019973,2]
[372638010,1752723051044,-500.193092,0.00019973,2]
[372638011,1752723051053,-500.0,0.00019973,2]
[372638012,1752723051062,-500.0,0.00019973,2]
[372638013,1752723051072,-500.0,0.00019973,2]
[372638014,1752723051082,-158.04118509,0.00019973,2]
[372638015,1752723051092,-260.14798762,0.00019973,2]
[372638016,1752723051102,-500.0,0.00019973,2]
[372638017,1752723051112,-500.0,0.00019973,2]
[372638018,1752723051121,-500.0,0.00019973,2]
[372638019,1752723051135,-500.0,0.00019973,2]
[372638020,1752723051145,-500.51885288,0.00019973,2]
[372638021,1752723051155,-500.0,0.00019973,2]
[372638022,1752723051166,-155.19178196,0.00019973,2]
[372638023,1752723051175,-500.0,0.00019973,2]
[372638024,1752723051186,-500.0,0.00019973,2]
[372638025,1752723051195,-500.0,0.00019973,2]
[372638026,1752723051206,-500.0,0.00019973,2]
[372638027,1752723051216,-500.0,0.00019973,2]
[372638028,1752723051226,-500.0,0.00019973,2]
[372638029,1752723051236,-500.0,0.00019973,2]
[372638030,1752723051246,-500.0,0.00019973,2]
[372638031,1752723051257,-501.00855432,0.00019973,2]
[372638032,1752723051267,-500.0,0.00019973,2]
[372638033,1752723051277,-500.50308032,0.00019973,2]
[372638034,1752723051287,-500.0,0.00019973,2]
[372638035,1752723051297,-550.49386033,0.00019973,2]
[372638036,1752723051307,-385.95731252,0.00019973,2]
[372638037,1752723051316,-521.83916639,0.00019973,2]
[372638038,1752723051327,-500.0,0.00019973,2]
[372638039,1752723051336,-784.50400844,0.00019973,2]
[372638040,1752723051346,-3138.01603377,0.00019973,2]
[372638041,1752723051356,-7053.47553991,0.00019973,2]
[372638042,1752723051365,-2332.7885453,0.0001998,2]
[372638043,1752723051375,-323.86816969,0.00019988,2]
[372638044,1752723051384,-68109.23194772,0.00019988,7]
[372638045,1752723051514,-15375.095,0.00019988,7]
[372638046,1752723051526,-257.3189741,0.00019988,7]
[372638047,1752723051538,-2765.91021425,0.00019988,7]
[372638048,1752723053207,-460.93070437,0.00018162,2]
[372638049,1752723053217,-159.06929563,0.00018162,2]
[372638051,1752723130494,194.44904711,0.00018064,2]
[372638053,1752723153634,10000.0,0.0002739,120]
[372638054,1752723169289,10000.0,0.0002739,120]
[372638056,1752723184829,10000.0,0.0002739,120]
[372638062,1752723333608,384.17248458,0.00018062,2]
[372638069,1752723483370,460.33846278,0.00027397,120]
[372638076,1752723578864,336.15092399,0.00018061,2]
[372638088,1752723859119,294.1320585,0.00018059,2]
[372638090,1752723925216,278.2260293,0.00017158,2]
[372638092,1752723992144,260.094773,0.00013699,2]
[372638098,1752724144609,257.36555117,0.00018056,2]
[372638134,1752724232493,-566.37,0.00018152,3]
[372638136,1752724232503,-283.19,0.00018152,3]
[372638138,1752724232513,-849.58,0.00018152,3]
[372638140,1752724232524,-300.0,0.00018153,2]
[372638142,1752724232534,-500.0,0.00018153,2]
[372638144,1752724232543,-369.56098505,0.00018153,2]
[372638146,1752724232555,-500.0,0.00018153,2]
[372638148,1752724232565,-500.0,0.00018153,2]
[372638150,1752724232575,-500.0,0.00018153,2]
[372638152,1752724232585,-500.0,0.00018153,2]
[372638154,1752724232595,-541.24418375,0.00018153,2]
[372638155,1752724232604,-500.0,0.00018153,2]
[372638156,1752724232614,-500.0,0.00018153,2]
[372638157,1752724232623,-500.0,0.00018153,2]
[372638160,1752724232633,-500.0,0.00018153,2]
[372638163,1752724232642,-500.0,0.00018153,2]
[372638166,1752724232652,-500.0,0.00018153,2]
[372638169,1752724232661,-214.94877129,0.00018153,2]
[372638172,1752724232670,-500.0,0.00018153,2]
[372638177,1752724232680,-500.0,0.00018153,2]
[372638179,1752724232689,-205.18397678,0.00018153,2]
[372638181,1752724232699,-500.0,0.00018153,2]
[372638183,1752724232708,-460.0,0.00018154,2]
[372638185,1752724232717,-460.0,0.00018154,2]
[372638187,1752724232728,-460.0,0.00018154,2]
[372638189,1752724232737,-460.0,0.00018154,2]
[372638191,1752724232747,-460.0,0.00018154,2]
[372638193,1752724232756,-460.0,0.00018154,2]
[372638194,1752724232765,-460.0,0.00018154,2]
[372638195,1752724232775,-460.0,0.00018154,2]
[372638196,1752724232784,-2496.2,0.00018154,2]
[372638197,1752724232794,-465.32809832,0.00018154,2]
[372638198,1752724232803,-491.40246155,0.00018154,2]
[372638199,1752724232813,-500.0,0.00018154,2]
[372638200,1752724232822,-500.0,0.00018154,2]
[372638201,1752724232831,-500.0,0.00018154,2]
[372638202,1752724232841,-500.0,0.00018154,2]
[372638203,1752724232850,-500.0,0.00018154,2]
[372638204,1752724232859,-173.50671739,0.00018154,2]
[372638205,1752724232869,-500.0,0.00018154,2]
[372638206,1752724232878,-500.0,0.00018154,2]
[372638207,1752724232888,-26858.63647597,0.00018155,2]
[372638208,1752724232901,-298.25819252,0.00018155,2]
[372638209,1752724232912,-916.08,0.00018155,2]
[372638210,1752724232923,-3471.59088876,0.00018155,2]
[372638211,1752724232933,-460.0,0.00018156,2]
[372638212,1752724232943,-460.0,0.00018156,2]
[372638213,1752724232952,-461.2954037,0.00018156,2]
[372638214,1752724232961,-460.0,0.00018156,2]
[372638215,1752724232971,-460.0,0.00018156,2]
[372638216,1752724232981,-460.0,0.00018156,2]
[372638217,1752724232991,-460.0,0.00018156,2]
[372638218,1752724233000,-460.0,0.00018156,2]
[372638219,1752724233009,-460.0,0.00018157,2]
[372638220,1752724233019,-460.0,0.00018157,2]
[372638221,1752724233028,-460.0,0.00018157,2]
[372638222,1752724233038,-6933.87,0.00018157,2]
[372638223,1752724233048,-460.0,0.00018157,2]
[372638224,1752724233056,-460.0,0.00018157,2]
[372638225,1752724233066,-2701.51,0.00018157,2]
[372638226,1752724233075,-460.0,0.00018157,2]
[372638227,1752724233085,-460.0,0.00018158,2]
[372638228,1752724233094,-516.24959672,0.00018158,2]
[372638229,1752724233103,-243.46606917,0.00018158,2]
[372638230,1752724233113,-460.0,0.00018158,2]
[372638231,1752724233122,-460.19061076,0.00018158,2]
[372638232,1752724233132,-460.0,0.00018158,2]
[372638233,1752724233141,-460.0,0.00018158,2]
[372638234,1752724233151,-460.0,0.00018158,2]
[372638235,1752724233160,-460.0,0.00018158,2]
[372638236,1752724233170,-460.0,0.00018158,2]
[372638237,1752724233179,-460.0,0.00018158,2]
[372638238,1752724233189,-460.0,0.00018158,2]
[372638239,1752724233198,-3126.5,0.00018158,2]
[372638240,1752724233207,-882.47,0.00018158,2]
[372638241,1752724233217,-460.0,0.00018158,2]
[372638242,1752724233227,-535.93,0.00018158,2]
[372638243,1752724233237,-460.0,0.00018158,2]
[372638244,1752724233246,-460.0,0.00018158,2]
[372638245,1752724233256,-2716.76,0.00018158,2]
[372638246,1752724233266,-460.0,0.00018158,2]
[372638247,1752724233275,-460.0,0.00018158,2]
[372638248,1752724233285,-460.0,0.00018158,2]
[372638249,1752724233295,-460.0,0.00018158,2]
[372638250,1752724233304,-460.0,0.00018158,2]
[372638251,1752724233314,-460.0,0.00018158,2]
[372638252,1752724233324,-593.6195946,0.00018158,2]
[372638253,1752724233333,-460.0,0.00018158,2]
[372638254,1752724233343,-460.0,0.00018158,2]
[372638255,1752724233352,-460.0,0.00018158,2]
[372638256,1752724233361,-1845.14,0.00018158,2]
[372638257,1752724233371,-460.0,0.00018158,2]
[372638258,1752724233380,-460.41452723,0.00018158,2]
[372638259,1752724233390,-710.4,0.00018158,2]
[372638260,1752724233399,-460.0,0.00018158,2]
[372638261,1752724233409,-460.0,0.00018158,2]
[372638262,1752724233419,-460.0,0.00018158,2]
[372638263,1752724233428,-248.17076339,0.00018158,2]
[372638264,1752724233438,-460.0,0.00018159,2]
[372638265,1752724233448,-460.0,0.00018159,2]
[372638266,1752724233458,-460.0,0.00018159,2]
[372638267,1752724233470,-460.0,0.00018159,2]
[372638268,1752724233485,-361.76866059,0.00018159,2]
[372638269,1752724233494,-460.0,0.00018159,2]
[372638270,1752724233504,-460.0,0.00018159,2]
[372638271,1752724233514,-461.89247396,0.00018159,2]
[372638272,1752724233524,-460.0,0.00018159,2]
[372638273,1752724233534,-460.0,0.00018159,2]
[372638274,1752724233543,-460.0,0.00018159,2]
[372638275,1752724233553,-460.0,0.00018159,2]
[372638276,1752724233564,-460.0,0.00018159,2]
[372638277,1752724233574,-460.0,0.00018159,2]
[372638278,1752724233584,-460.0,0.00018159,2]
[372638279,1752724233594,-460.0,0.00018159,2]
[372638280,1752724233603,-507.41,0.00018159,2]
[372638281,1752724233613,-460.0,0.00018159,2]
[372638282,1752724233622,-460.0,0.00018159,2]
[372638283,1752724233632,-460.0,0.00018159,2]
[372638284,1752724233642,-460.0,0.00018159,2]
[372638285,1752724233653,-460.0,0.00018159,2]
[372638286,1752724233662,-460.0,0.00018159,2]
[372638287,1752724233672,-500.0,0.00018159,2]
[372638288,1752724233682,-500.0,0.00018159,2]
[372638289,1752724233692,-460.0,0.00018159,2]
[372638290,1752724233701,-460.0,0.00018159,2]
[372638291,1752724233712,-460.0,0.00018159,2]
[372638292,1752724233722,-460.0,0.00018159,2]
[372638293,1752724233736,-460.0,0.00018159,2]
[372638294,1752724233746,-460.0,0.00018159,2]
[372638295,1752724233756,-1704.52,0.00018159,2]
[372638296,1752724233767,-561.5,0.00018159,2]
[372638297,1752724233777,-817.1,0.00018159,2]
[372638298,1752724233788,-460.0,0.00018159,2]
[372638299,1752724233797,-460.0,0.00018159,2]
[372638300,1752724233807,-460.0,0.00018159,2]
[372638301,1752724233817,-460.0,0.00018159,2]
[372638302,1752724233827,-460.0,0.00018159,2]
[372638303,1752724233837,-460.0,0.00018159,2]
[372638304,1752724233847,-460.0,0.00018159,2]
[372638305,1752724233856,-460.0,0.00018159,2]
[372638306,1752724233866,-460.0,0.00018159,2]
[372638307,1752724233875,-460.58917293,0.00018159,2]
[372638308,1752724233885,-460.0,0.00018159,2]
[372638309,1752724233894,-704.26,0.00018159,2]
[372638310,1752724233904,-570.54,0.00018159,2]
[372638311,1752724233914,-671.64,0.00018159,2]
[372638312,1752724233923,-460.0,0.00018159,2]
[372638313,1752724233933,-1058.1,0.00018159,2]
[372638314,1752724233943,-460.0,0.00018159,2]
[372638315,1752724233952,-460.0,0.00018159,2]
[372638316,1752724233962,-460.0,0.00018159,2]
[372638317,1752724233971,-460.0,0.00018159,2]
[372638318,1752724233984,-672.95,0.00018159,2]
[372638319,1752724233994,-460.0,0.00018159,2]
[372638320,1752724234004,-252.17,0.00018159,2]
[372638321,1752724234015,-460.0,0.00018159,2]
[372638322,1752724234024,-460.0,0.00018159,2]
[372638323,1752724234034,-460.0,0.00018159,2]
[372638324,1752724234044,-460.0,0.00018159,2]
[372638325,1752724234053,-542.11,0.00018159,2]
[372638326,1752724234063,-460.0,0.00018159,2]
[372638327,1752724234073,-460.0,0.00018159,2]
[372638328,1752724234083,-649.15,0.00018159,2]
[372638329,1752724234092,-176.04,0.00018159,2]
[372638330,1752724234102,-460.0,0.00018159,2]
[372638331,1752724234112,-460.0,0.00018159,2]
[372638332,1752724234122,-460.0,0.0001816,2]
[372638333,1752724234131,-460.0,0.0001816,2]
[372638334,1752724234141,-460.0,0.0001816,2]